bitfinex/quotes_SOLUSD_20241213
["timestamp","ask_amount","ask_price","bid_price","bid_amount"]
[1734050823516,12.70636541,227.91,227.84,12.70636541]
[1734050823719,12.70636541,227.9,227.83,12.70636541]
[1734050824045,12.70636541,227.9,227.86,20.0]
[1734050824326,12.70636541,227.91,227.86,20.0]
[1734050824617,12.70636541,227.87,227.79,0.65822464]
[1734050824801,12.70636541,227.87,227.77,1.9753]
[1734050824802,12.70636541,227.84,227.77,14.68166541]
[1734050824996,12.70636541,227.83,227.76,13.36459005]
[1734050825411,12.70636541,227.84,227.77,12.70636541]
[1734050826016,12.70636541,227.79,227.73,13.20636541]
[1734050827402,12.70636541,227.79,227.74,23.776884]
[1734050827713,12.70636541,227.8,227.74,23.776884]
[1734050828524,12.70636541,227.8,227.73,13.20636541]
[1734050828694,12.70636541,227.76,227.73,0.5]
[1734050828891,12.70636541,227.75,227.73,0.5]
[1734050830012,14.70756541,227.81,227.73,0.5]
[1734050830013,12.70636541,227.79,227.73,0.5]
[1734050830501,12.70636541,227.78,227.73,0.5]
[1734050830703,12.70636541,227.76,227.73,0.5]
[1734050831421,12.70636541,227.78,227.73,0.5]
[1734050831916,12.70636541,227.77,227.73,0.5]
[1734050832336,12.70636541,227.76,227.73,0.5]
[1734050832504,12.70636541,227.75,227.73,0.5]
[1734050833114,12.70636541,227.76,227.73,0.5]
[1734050833423,12.70636541,227.77,227.73,0.5]
[1734050833923,12.70636541,227.78,227.73,0.5]
[1734050835308,6.0096,227.85,227.75,36.48324941]
[1734050835617,6.0096,227.85,227.77,23.776884]
[1734050835618,12.70636541,227.83,227.77,23.776884]
[1734050835815,12.70636541,227.81,227.76,23.776884]
[1734050836125,12.70636541,227.8,227.75,23.776884]
[1734050836700,6.0096,227.85,227.75,23.776884]
[1734050836701,12.70636541,227.79,227.75,23.776884]
[1734050837112,12.70636541,227.76,227.73,0.5]
[1734050837417,12.70636541,227.77,227.73,0.5]
[1734050839416,12.70636541,227.75,227.73,0.5]
[1734050839724,12.70636541,227.74,227.73,0.5]
[1734050843108,12.70636541,227.77,227.73,0.5]
[1734050844126,12.70636541,227.76,227.73,0.5]
[1734050844446,12.70636541,227.74,227.73,0.5]
[1734050846007,1.8785,227.83,227.73,0.5]
[1734050846008,12.70636541,227.77,227.73,0.5]
[1734050846352,12.70636541,227.81,227.75,23.776884]
[1734050846519,12.70636541,227.82,227.78,20.0]
[1734050847526,12.70636541,227.83,227.78,20.0]
[1734050847719,12.70636541,227.82,227.78,20.0]
[1734050848417,12.70636541,227.81,227.78,20.0]
[1734050848844,12.70636541,227.82,227.78,20.0]
[1734050850242,12.70636541,227.81,227.78,20.0]
[1734050850732,12.70636541,227.82,227.78,20.0]
[1734050854737,12.70636541,227.81,227.78,20.0]
[1734050855622,12.70636541,227.82,227.78,20.0]
[1734050859846,12.70636541,227.83,227.79,23.776884]
[1734050860142,12.70636541,227.86,227.79,36.48324941]
[1734050860664,12.70636541,227.86,227.79,37.14158785]
[1734050861261,12.70636541,227.87,227.82,20.0]
[1734050861422,12.70636541,227.88,227.83,23.776884]
[1734050861627,28.59172658,227.94,227.83,37.141501]
[1734050861628,12.70636541,227.9,227.83,37.141501]
[1734050862035,12.70636541,227.91,227.84,12.70636541]
[1734050862435,2.0007,227.94,227.83,24.43513559]
[1734050862436,12.70636541,227.89,227.83,23.776884]
[1734050863228,12.70636541,227.87,227.83,23.776884]
[1734050863433,12.70636541,227.86,227.83,20.0]
[1734050863644,12.70636541,227.88,227.83,20.0]
[1734050863839,12.70636541,227.89,227.82,33.36465168]
[1734050864139,12.70636541,227.91,227.86,20.0]
[1734050864342,12.70636541,227.9,227.86,20.0]
[1734050866250,12.70636541,227.89,227.85,20.0]
[1734050866427,12.70636541,227.87,227.8,36.48324941]
[1734050866633,12.70636541,227.87,227.83,20.0]
[1734050867334,12.70636541,227.88,227.84,20.0]
[1734050867544,12.70636541,227.87,227.83,20.0]
[1734050868249,12.70636541,227.85,227.8,23.776884]
[1734050868427,12.70636541,227.85,227.79,23.776884]
[1734050868638,12.70636541,227.84,227.77,12.70636541]
[1734050869332,12.70636541,227.84,227.8,20.0]
[1734050870442,12.70636541,227.83,227.8,20.0]
[1734050872747,12.70636541,227.84,227.8,20.0]
[1734050873076,12.70636541,227.84,227.79,23.776884]
[1734050873261,8.13526104,227.84,227.78,8.13526104]
[1734050873430,8.13526104,227.84,227.79,23.776884]
[1734050873747,8.13526104,227.85,227.79,23.776884]
[1734050877239,8.13526104,227.86,227.79,23.776884]
[1734050877866,8.13526104,227.85,227.76,20.0]
[1734050878064,8.13526104,227.85,227.79,23.776884]
[1734050878438,8.13526104,227.86,227.79,23.776884]
[1734050879737,8.13526104,227.85,227.79,23.776884]
[1734050879938,8.13526104,227.84,227.77,31.91214504]
[1734050880163,8.13526104,227.82,227.77,23.776884]
[1734050880370,8.13526104,227.83,227.78,20.0]
[1734050881064,8.13526104,227.84,227.79,20.0]
[1734050881472,8.13526104,227.84,227.77,8.13526104]
[1734050881677,8.13526104,227.85,227.78,23.776884]
[1734050882036,8.13526104,227.86,227.78,31.91214504]
[1734050883262,8.13526104,227.86,227.81,20.0]
[1734050884679,8.13526104,227.88,227.82,23.776884]
[1734050884975,12.9688,227.94,227.82,23.776884]
[1734050884976,8.13526104,227.89,227.82,31.91214504]
[1734050886074,8.13526104,227.92,227.86,23.776884]
[1734050886939,8.13526104,227.93,227.86,31.91214504]
[1734050887143,8.13526104,227.95,227.89,20.0]
[1734050887353,8.13526104,227.95,227.9,23.776884]
[1734050887961,1.9445,227.99,227.89,23.776884]
[1734050887962,8.13526104,227.94,227.89,23.776884]
[1734050888551,8.13526104,227.94,227.9,20.0]
[1734050888964,8.13526104,227.94,227.91,20.0]
[1734050891072,8.13526104,227.95,227.91,20.0]
[1734050891271,8.13526104,227.96,227.91,20.0]
[1734050893855,1.9445,227.99,227.91,20.0]
[1734050893856,8.13526104,227.94,227.91,20.0]
[1734050895589,8.13526104,227.95,227.91,20.0]
[1734050896951,8.13526104,227.95,227.88,23.776884]
[1734050897269,8.13526104,227.92,227.85,23.776884]
[1734050897858,8.13526104,227.91,227.85,23.776884]
[1734050898058,0.25098,227.98,227.83,28.96896816]
[1734050898059,8.13526104,227.9,227.83,37.1042292]
[1734050898574,8.13526104,227.91,227.83,37.1042292]
[1734050899352,8.13526104,227.91,227.86,20.0]
[1734050899552,8.13526104,227.93,227.87,23.776884]
[1734050899756,8.13526104,227.94,227.87,31.91214504]
[1734050901074,21.9445,227.99,227.87,31.91214504]
[1734050901272,8.13526104,227.94,227.87,31.91214504]
[1734050901472,8.13526104,227.95,227.89,23.776884]
[1734050902378,8.13526104,227.94,227.87,31.91214504]
[1734050902564,8.13526104,227.92,227.87,23.776884]
[1734050902891,8.13526104,227.91,227.87,23.776884]
[1734050903960,8.13526104,227.92,227.87,23.776884]
[1734050905465,1.9445,227.99,227.87,23.776884]
[1734050905466,8.13526104,227.93,227.87,23.776884]
[1734050906576,8.13526104,227.94,227.87,31.91214504]
[1734050907663,8.13526104,227.93,227.86,20.0]
[1734050907868,8.13526104,227.92,227.86,20.0]
[1734050908177,8.13526104,227.93,227.86,28.13526104]
[1734050908378,8.13526104,227.93,227.87,23.776884]
[1734050909965,8.13526104,227.92,227.86,20.0]
[1734050910264,8.13526104,227.91,227.84,20.0]
[1734050910474,8.13526104,227.91,227.86,20.0]
[1734050910880,8.13526104,227.9,227.86,20.0]
[1734050911265,8.13526104,227.9,227.85,20.0]
[1734050911477,8.13526104,227.91,227.84,28.13526104]
[1734050911867,8.13526104,227.91,227.85,23.776884]
[1734050912782,8.13526104,227.88,227.82,1.9325]
[1734050912971,15.0,227.96,227.83,20.0]
[1734050912972,8.13526104,227.87,227.83,20.0]
[1734050913179,8.13526104,227.87,227.81,23.776884]
[1734050914289,8.13526104,227.87,227.81,31.91214504]
[1734050915089,8.13526104,227.88,227.81,31.91214504]
[1734050915985,8.13526104,227.89,227.83,23.776884]
[1734050916965,8.13526104,227.88,227.82,23.776884]
[1734050918488,8.04677009,227.88,227.82,23.776884]
[1734050919074,8.13526104,227.85,227.82,20.0]
[1734050919387,8.13526104,227.83,227.79,20.0]
[1734050919590,12.9859,227.91,227.73,1.15840702]
[1734050919591,8.13526104,227.8,227.73,0.5]
[1734050919773,8.13526104,227.8,227.73,8.63526104]
[1734050920091,8.13526104,227.81,227.75,8.13526104]
[1734050920475,8.13526104,227.8,227.73,8.63526104]
[1734050920889,27.9859,227.91,227.75,8.13526104]
[1734050920890,8.13526104,227.81,227.75,8.13526104]
[1734050921883,0.25098,227.9,227.79,23.776884]
[1734050922089,8.13526104,227.84,227.79,23.776884]
[1734050922589,0.25098,227.9,227.84,19.07681765]
[1734050922783,8.13526104,227.85,227.84,19.07681765]
[1734050925391,8.26075104,227.85,227.84,19.07681765]
[1734050925691,10.27104104,227.85,227.84,19.07681765]
[1734050927212,10.27104104,227.85,227.73,0.5]
[1734050927213,20.0,227.82,227.73,0.5]
[1734050927376,11.22358,227.84,227.73,0.5]
[1734050927377,8.13526104,227.76,227.73,0.5]
[1734050927572,0.12549,227.83,227.73,0.5]
[1734050927770,1.8848,227.85,227.73,8.63526104]
[1734050927990,8.13526104,227.81,227.74,8.13526104]
[1734050928705,8.13526104,227.81,227.75,23.776884]
[1734050928878,8.13526104,227.8,227.74,23.776884]
[1734050930396,8.13526104,227.79,227.74,23.776884]
[1734050931893,8.13526104,227.8,227.74,23.776884]
[1734050934978,8.13526104,227.81,227.74,23.776884]
[1734050935409,8.13526104,227.84,227.76,8.13526104]
[1734050935710,8.13526104,227.86,227.79,31.91214504]
[1734050936211,8.13526104,227.88,227.82,23.776884]
[1734050936380,8.13526104,227.87,227.81,23.776884]
[1734050937213,8.13526104,227.86,227.81,23.776884]
[1734050937398,8.13526104,227.86,227.8,23.776884]
[1734050938508,8.13526104,227.85,227.81,20.0]
[1734050939005,8.13526104,227.85,227.79,23.776884]
[1734050939509,8.13526104,227.87,227.8,8.13526104]
[1734050940002,8.13526104,227.87,227.81,23.776884]
[1734050943887,8.13526104,227.84,227.76,20.0]
[1734050944080,8.13526104,227.83,227.77,23.776884]
[1734050944386,8.13526104,227.82,227.76,23.776884]
[1734050944689,8.13526104,227.83,227.76,31.91214504]
[1734050945508,8.13526104,227.83,227.8,23.776884]
[1734050947498,10.9692,227.91,227.75,8.13526104]
[1734050947499,8.13526104,227.82,227.75,8.13526104]
[1734050947703,8.13526104,227.82,227.78,20.0]
[1734050949238,8.13526104,227.82,227.76,23.776884]
[1734050950510,8.13526104,227.8,227.74,23.776884]
[1734050951708,8.13526104,227.79,227.73,0.5]
[1734050951906,8.13526104,227.77,227.73,0.5]
[1734050952105,8.13526104,227.76,227.73,0.5]
[1734050953296,8.13526104,227.77,227.73,0.5]
[1734050953614,8.13526104,227.78,227.73,0.5]
[1734050956911,8.13526104,227.76,227.73,0.5]
[1734050957100,8.13526104,227.74,227.73,0.5]
[1734050960738,8.38624104,227.74,227.73,0.5]
[1734050963341,8.37229,227.73,227.58,20.0]
[1734050963635,8.13526104,227.64,227.58,20.0]
[1734050963837,8.13526104,227.64,227.57,8.13526104]
[1734050964839,8.13526104,227.63,227.56,10.10366104]
[1734050965426,8.13526104,227.62,227.58,20.0]
[1734050965745,8.13526104,227.59,227.5,8.3612444]
[1734050965925,8.13526104,227.58,227.51,8.13526104]
[1734050966950,8.13526104,227.58,227.54,20.0]
[1734050967335,8.13526104,227.56,227.51,23.776884]
[1734050968023,8.13526104,227.56,227.5,0.5212444]
[1734050968225,8.13526104,227.56,227.5,8.65650544]
[1734050968423,8.13526104,227.55,227.5,0.5212444]
[1734050969525,0.12549,227.64,227.51,8.13526104]
[1734050969737,8.13526104,227.58,227.53,23.776884]
[1734050969945,8.1447,227.65,227.53,31.91214504]
[1734050970144,8.13526104,227.61,227.54,8.13526104]
[1734050970346,8.13526104,227.61,227.55,23.776884]
[1734050970835,8.13526104,227.6,227.54,23.776884]
[1734050971532,8.13526104,227.59,227.54,23.776884]
[1734050971836,8.13526104,227.59,227.53,23.776884]
[1734050972542,8.13526104,227.61,227.54,8.13526104]
[1734050972845,8.13526104,227.62,227.55,31.91214504]
[1734050973445,8.13526104,227.6,227.5,0.5212444]
[1734050973743,8.13526104,227.6,227.54,23.776884]
[1734050974136,8.13526104,227.6,227.54,31.91214504]
[1734050974449,8.1447,227.65,227.56,23.776884]
[1734050974450,8.13526104,227.62,227.56,23.776884]
[1734050975528,8.13526104,227.61,227.55,23.776884]
[1734050975931,8.13526104,227.6,227.54,23.776884]
[1734050976152,8.13526104,227.59,227.54,23.776884]
[1734050976646,8.13526104,227.59,227.55,20.0]
[1734050976947,8.13526104,227.59,227.53,23.776884]
[1734050977160,8.13526104,227.61,227.55,23.776884]
[1734050977645,8.13526104,227.62,227.55,31.91214504]
[1734050978053,8.13526104,227.63,227.57,23.776884]
[1734050978238,8.13526104,227.62,227.57,23.776884]
[1734050980240,8.13526104,227.62,227.56,23.776884]
[1734050980443,8.13526104,227.61,227.56,23.776884]
[1734050982258,8.13526104,227.6,227.54,23.776884]
[1734050982559,8.13526104,227.59,227.53,23.776884]
[1734050983249,8.13526104,227.58,227.52,23.776884]
[1734050983433,8.13526104,227.58,227.5,0.5212444]
[1734050983634,8.13526104,227.55,227.5,0.5212444]
[1734050984046,8.13526104,227.53,227.5,0.5212444]
[1734050985759,32.54104416,227.59,227.5,0.5212444]
[1734050986056,8.13526104,227.53,227.5,0.5212444]
[1734050987455,8.13526104,227.52,227.5,0.5212444]
[1734050987854,8.13526104,227.51,227.5,0.5212444]
[1734050988862,8.26075104,227.51,227.5,0.5212444]
[1734050989039,8.38624104,227.51,227.5,0.5212444]
[1734050989240,8.38624104,227.51,227.38,8.13526104]
[1734050989241,0.25098,227.5,227.35,2.25877363]
[1734050989451,0.25098,227.5,227.35,9.73446104]
[1734050989452,8.13526104,227.41,227.35,9.73446104]
[1734050989648,8.13526104,227.41,227.35,1.5992]
[1734050990350,8.13526104,227.39,227.32,8.13526104]
[1734050990553,8.13526104,227.38,227.31,8.13526104]
[1734050991274,8.13526104,227.38,227.32,8.13526104]
[1734050991457,8.13526104,227.39,227.33,8.13526104]
[1734050991651,8.13526104,227.4,227.34,31.91214504]
[1734050991865,8.13526104,227.43,227.37,8.13526104]
[1734050992052,8.13526104,227.44,227.37,8.13526104]
[1734050992256,8.13526104,227.43,227.37,8.13526104]
[1734050992756,8.13526104,227.46,227.39,8.13526104]
[1734050992965,8.13526104,227.46,227.38,23.776884]
[1734050993161,8.13526104,227.46,227.39,8.13526104]
[1734050995695,8.13526104,227.46,227.4,8.13526104]
[1734050997399,8.13526104,227.45,227.39,8.13526104]
[1734050998006,8.13526104,227.45,227.38,31.91214504]
[1734050998203,8.13526104,227.44,227.38,23.776884]
[1734050998496,8.13526104,227.45,227.39,8.13526104]
[1734051000507,0.25098,227.52,227.42,8.13526104]
[1734051000680,8.13526104,227.51,227.44,31.91214504]
[1734051001108,8.13526104,227.5,227.43,31.91214504]
[1734051004498,8.13526104,227.48,227.43,23.776884]
[1734051004712,8.13526104,227.47,227.42,23.776884]
[1734051005002,8.13526104,227.47,227.41,23.776884]
[1734051006215,1.6342,227.53,227.39,31.91214504]
[1734051006216,8.13526104,227.46,227.39,31.91214504]
[1734051006504,8.13526104,227.45,227.39,23.776884]
[1734051006895,8.13526104,227.44,227.37,31.91214504]
[1734051007419,1.6342,227.53,227.33,2.16018208]
[1734051007420,8.13526104,227.45,227.39,23.776884]
[1734051008233,8.13526104,227.45,227.39,31.91214504]
[1734051008982,0.25098,227.52,227.39,31.91214504]
[1734051009193,8.13526104,227.45,227.39,31.91214504]
[1734051009881,0.25098,227.52,227.39,31.91214504]
[1734051009882,0.25098,227.52,227.4,8.13526104]
[1734051010092,0.25098,227.52,227.41,31.91214504]
[1734051010300,8.13526104,227.48,227.41,31.91214504]
[1734051011607,8.13526104,227.49,227.42,8.13526104]
[1734051011806,8.13526104,227.49,227.43,23.776884]
[1734051013300,8.13526104,227.48,227.43,23.776884]
[1734051013487,8.13526104,227.48,227.42,23.776884]
[1734051013691,8.13526104,227.47,227.4,23.776884]
[1734051015011,1.6342,227.53,227.42,8.13526104]
[1734051015210,8.13526104,227.51,227.44,8.13526104]
[1734051015508,8.13526104,227.52,227.45,31.91214504]
[1734051015737,8.13526104,227.52,227.45,23.776884]
[1734051016231,8.13526104,227.51,227.45,23.776884]
[1734051016915,8.13526104,227.49,227.43,23.776884]
[1734051017715,8.13526104,227.48,227.41,31.91214504]
[1734051017906,8.13526104,227.48,227.41,23.776884]
[1734051019310,8.13526104,227.49,227.42,8.13526104]
[1734051022314,1.6342,227.53,227.45,8.13526104]
[1734051022524,1.6342,227.53,227.46,23.776884]
[1734051022731,9.76946104,227.53,227.46,23.776884]
[1734051023013,1.6342,227.53,227.46,23.776884]
[1734051023243,9.76946104,227.53,227.46,23.776884]
[1734051023929,8.13526104,227.51,227.47,20.0]
[1734051024511,8.13526104,227.49,227.41,8.13526104]
[1734051024703,8.13526104,227.49,227.45,20.0]
[1734051025307,8.13526104,227.5,227.43,8.13526104]
[1734051026617,8.13526104,227.52,227.45,8.13526104]
[1734051029822,1.5444,227.58,227.48,8.13526104]
[1734051030104,8.13526104,227.57,227.5,8.13526104]
[1734051030303,9.67966104,227.58,227.51,8.13526104]
[1734051030951,8.13526104,227.55,227.46,20.0]
[1734051031111,8.13526104,227.54,227.47,8.13526104]
[1734051032528,8.13526104,227.54,227.46,20.0]
[1734051032529,8.13526104,227.54,227.48,8.13526104]
[1734051033637,8.13526104,227.54,227.47,8.13526104]
[1734051036036,8.13526104,227.54,227.42,20.0]
[1734051036229,8.13526104,227.54,227.47,8.13526104]
[1734051037048,8.13526104,227.55,227.48,8.13526104]
[1734051040224,9.67966104,227.58,227.51,8.13526104]
[1734051040741,1.5444,227.58,227.53,8.13526104]
[1734051041109,9.67966104,227.58,227.51,8.13526104]
[1734051042628,8.13526104,227.57,227.5,8.13526104]
[1734051042825,8.13526104,227.57,227.47,0.65915007]
[1734051043040,8.13526104,227.54,227.47,8.13526104]
[1734051043610,8.13526104,227.55,227.48,8.13526104]
[1734051043814,8.13526104,227.55,227.47,8.13526104]
[1734051045949,8.13526104,227.54,227.47,8.13526104]
[1734051046240,1.5444,227.58,227.43,2.39224368]
[1734051046241,8.13526104,227.52,227.43,2.39224368]
[1734051046444,8.13526104,227.52,227.45,8.13526104]
[1734051047638,8.13526104,227.52,227.46,8.13526104]
[1734051047847,8.13526104,227.53,227.47,8.13526104]
[1734051049743,8.13526104,227.54,227.47,8.13526104]
[1734051049927,8.13526104,227.55,227.48,8.13526104]
[1734051050325,8.13526104,227.55,227.42,20.6593927]
[1734051050523,8.13526104,227.54,227.47,8.13526104]
[1734051051342,8.13526104,227.55,227.48,8.13526104]
[1734051053750,8.13526104,227.54,227.47,8.13526104]
[1734051057042,8.13526104,227.55,227.48,8.13526104]
[1734051057255,8.13526104,227.53,227.45,8.13526104]
[1734051057545,8.13526104,227.52,227.45,8.13526104]
[1734051058229,8.13526104,227.51,227.44,8.13526104]
[1734051058842,8.13526104,227.54,227.47,8.13526104]
[1734051060635,0.12549,227.57,227.48,8.13526104]
[1734051060835,8.13526104,227.55,227.48,8.13526104]
[1734051061432,8.13526104,227.54,227.47,8.13526104]
[1734051062465,8.13526104,227.51,227.42,20.0]
[1734051062626,8.13526104,227.52,227.45,8.13526104]
[1734051064431,8.13526104,227.51,227.44,8.13526104]
[1734051065241,8.13526104,227.52,227.45,8.13526104]
[1734051066838,8.13526104,227.49,227.42,28.13526104]
[1734051068160,8.13526104,227.5,227.43,8.13526104]
[1734051068653,8.13526104,227.53,227.46,8.13526104]
[1734051070742,0.25098,227.57,227.46,8.13526104]
[1734051070932,8.13526104,227.55,227.48,8.13526104]
[1734051073578,1.5444,227.58,227.52,8.13526104]
[1734051073870,9.67966104,227.58,227.52,8.13526104]
[1734051074081,8.13526104,227.6,227.54,8.13526104]
[1734051075371,8.13526104,227.62,227.55,8.13526104]
[1734051075536,8.13526104,227.62,227.49,0.65929521]
[1734051075537,8.13526104,227.62,227.56,8.13526104]
[1734051075737,9.65326104,227.63,227.57,8.13526104]
[1734051075972,1.518,227.63,227.57,8.13526104]
[1734051076336,8.13526104,227.65,227.58,8.13526104]
[1734051077051,1.6401,227.69,227.57,8.13526104]
[1734051077052,8.13526104,227.64,227.57,8.13526104]
[1734051078552,8.13526104,227.65,227.58,8.13526104]
[1734051079757,8.13526104,227.63,227.51,0.65901658]
[1734051079948,8.13526104,227.62,227.55,8.13526104]
[1734051080151,8.13526104,227.61,227.54,8.13526104]
[1734051081458,8.13526104,227.6,227.54,8.13526104]
[1734051083344,8.13526104,227.61,227.54,8.13526104]
[1734051083561,8.13526104,227.61,227.55,8.13526104]
[1734051086572,8.13526104,227.62,227.55,8.13526104]
[1734051087747,8.13526104,227.61,227.54,8.13526104]
[1734051088771,13.61145904,227.66,227.55,8.13526104]
[1734051088973,8.13526104,227.62,227.55,8.13526104]
[1734051090449,8.13526104,227.62,227.54,8.13526104]
[1734051091665,8.13526104,227.61,227.54,8.13526104]
[1734051092096,8.13526104,227.6,227.5,20.0]
[1734051092383,8.13526104,227.56,227.49,8.13526104]
[1734051092665,8.13526104,227.56,227.46,6.0792]
[1734051092868,8.13526104,227.56,227.49,8.13526104]
[1734051095458,10.9841,227.6,227.45,1.5306]
[1734051095459,8.13526104,227.55,227.45,1.5306]
[1734051095659,8.13526104,227.55,227.48,8.13526104]
[1734051098875,8.13526104,227.56,227.49,8.13526104]
[1734051099581,8.13526104,227.55,227.48,8.13526104]
[1734051103287,8.13526104,227.55,227.43,20.0]
[1734051103479,8.13526104,227.55,227.48,8.13526104]
[1734051104163,8.13526104,227.54,227.47,8.13526104]
[1734051104365,8.13526104,227.53,227.43,20.0]
[1734051104572,8.13526104,227.53,227.47,8.13526104]
[1734051104770,8.13526104,227.54,227.47,8.13526104]
[1734051106866,8.13526104,227.54,227.48,8.13526104]
[1734051107203,8.13526104,227.57,227.5,8.13526104]
[1734051108068,8.13526104,227.59,227.53,8.13526104]
[1734051108284,8.13526104,227.59,227.52,8.13526104]
[1734051108688,8.13526104,227.58,227.52,8.13526104]
[1734051109688,8.13526104,227.57,227.51,8.13526104]
[1734051109895,8.13526104,227.57,227.5,8.13526104]
[1734051112186,8.13526104,227.57,227.45,0.65920411]
[1734051112491,8.13526104,227.54,227.47,20.0]
[1734051112692,8.13526104,227.54,227.47,28.13526104]
[1734051113894,8.13526104,227.55,227.48,8.13526104]
[1734051119183,8.13526104,227.55,227.43,20.65934332]
[1734051119382,8.13526104,227.55,227.48,8.13526104]
[1734051119794,8.13526104,227.54,227.47,8.13526104]
[1734051120296,8.13526104,227.55,227.48,8.13526104]
[1734051121389,1.6086,227.54,227.48,8.13526104]
[1734051121587,9.74386104,227.54,227.47,8.13526104]
[1734051123484,8.13526104,227.53,227.47,8.13526104]
[1734051123682,1.6086,227.54,227.42,20.0]
[1734051123683,8.13526104,227.5,227.42,20.0]
[1734051123881,8.13526104,227.49,227.43,8.13526104]
[1734051124677,8.13526104,227.49,227.38,17.56111233]
[1734051124877,8.13526104,227.49,227.43,8.13526104]
[1734051125882,8.13526104,227.47,227.38,16.90173791]
[1734051126084,8.13526104,227.47,227.41,8.13526104]
[1734051128993,8.13526104,227.47,227.4,8.13526104]
[1734051130409,9.74916104,227.46,227.37,20.0]
[1734051130615,9.74916104,227.46,227.39,8.13526104]
[1734051130823,9.74916104,227.46,227.4,8.13526104]
[1734051131019,1.6139,227.46,227.41,8.13526104]
[1734051132943,1.6139,227.46,227.42,8.13526104]
[1734051133112,8.13526104,227.5,227.43,8.13526104]
[1734051135108,8.13526104,227.45,227.34,20.0]
[1734051135418,8.13526104,227.45,227.38,8.13526104]
[1734051135813,8.13526104,227.44,227.34,20.0]
[1734051136120,20.0,227.47,227.38,8.13526104]
[1734051136323,20.0,227.47,227.39,8.13526104]
[1734051136504,8.13526104,227.46,227.39,8.13526104]
[1734051137014,8.13526104,227.46,227.4,8.13526104]
[1734051138231,8.13526104,227.46,227.39,8.13526104]
[1734051139621,20.0,227.47,227.39,8.13526104]
[1734051139814,1.6379,227.51,227.44,8.13526104]
[1734051140012,1.6379,227.51,227.4,20.65955593]
[1734051140013,1.6379,227.51,227.47,8.13526104]
[1734051140227,1.5642,227.56,227.48,8.13526104]
[1734051140523,8.13526104,227.54,227.48,8.13526104]
[1734051141118,8.13526104,227.5,227.44,20.0]
[1734051141320,8.13526104,227.51,227.44,28.13526104]
[1734051142799,14.57216104,227.53,227.46,8.13526104]
[1734051144536,8.13526104,227.51,227.44,8.13526104]
[1734051144831,8.13526104,227.52,227.45,8.13526104]
[1734051145842,8.13526104,227.54,227.47,8.13526104]
[1734051146006,8.13526104,227.55,227.48,8.13526104]
[1734051146506,8.13526104,227.55,227.47,8.13526104]
[1734051146708,8.13526104,227.54,227.47,8.13526104]
[1734051146926,8.13526104,227.55,227.47,8.13526104]
[1734051148330,8.13526104,227.54,227.46,8.13526104]
[1734051148522,8.13526104,227.54,227.47,8.13526104]
[1734051152745,1.5642,227.56,227.52,8.13526104]
[1734051152954,9.77086104,227.62,227.55,8.13526104]
[1734051153141,1.6356,227.62,227.56,8.13526104]
[1734051153536,9.77086104,227.62,227.55,8.13526104]
[1734051154526,8.13526104,227.6,227.53,8.13526104]
[1734051156540,1.6356,227.62,227.48,32.54104416]
[1734051156541,1.6356,227.62,227.58,8.13526104]
[1734051157460,9.77086104,227.62,227.54,0.65916229]
[1734051157634,9.77086104,227.62,227.55,8.13526104]
[1734051158256,1.6356,227.62,227.56,8.13526104]
[1734051162440,1.6356,227.62,227.51,20.0]
[1734051162441,9.77086104,227.62,227.51,20.0]
[1734051162647,8.13526104,227.6,227.53,8.13526104]
[1734051163237,8.13526104,227.61,227.54,8.13526104]
[1734051165131,8.13526104,227.61,227.51,20.65916388]
[1734051165337,1.6356,227.62,227.57,8.13526104]
[1734051167538,9.77086104,227.62,227.51,20.0]
[1734051167743,8.13526104,227.61,227.54,8.13526104]
[1734051168142,8.13526104,227.61,227.55,8.13526104]
[1734051170171,8.13526104,227.61,227.51,20.65914116]
[1734051170172,8.13526104,227.61,227.51,0.65914116]
[1734051170458,8.13526104,227.6,227.53,8.13526104]
[1734051170862,1.6356,227.62,227.54,8.13526104]
[1734051171064,9.77086104,227.62,227.55,8.13526104]
[1734051171259,8.13526104,227.61,227.54,8.13526104]
[1734051175562,9.77086104,227.62,227.55,8.13526104]
[1734051175758,1.6356,227.62,227.56,8.13526104]
[1734051177852,1.6356,227.62,227.58,8.13526104]
[1734051178051,6.5548,227.64,227.58,8.13526104]
[1734051178403,8.13526104,227.66,227.59,8.13526104]
[1734051178969,8.13526104,227.65,227.58,8.13526104]
[1734051180552,8.13526104,227.64,227.58,8.13526104]
[1734051181474,8.13526104,227.65,227.58,8.13526104]
[1734051182172,8.13526104,227.66,227.59,8.13526104]
[1734051184381,8.13526104,227.64,227.58,8.13526104]